bitfinex/quotes_ETHUSD_20260202
["timestamp","ask_amount","ask_price","bid_price","bid_amount"]
[1770057946829,0.0011,2352.5,2351.8,12.57020393]
[1770057946990,0.0011,2353.0,2352.3,12.58303925]
[1770057947190,0.0011,2353.0,2352.4,0.892]
[1770057947823,0.0011,2353.0,2352.4,13.46220393]
[1770057948031,0.0011,2353.5,2352.6,12.58303925]
[1770057948319,0.0011,2353.5,2352.4,13.46220393]
[1770057948643,0.0011,2353.5,2352.5,1.06269925]
[1770057948644,11.7095672,2353.5,2352.5,1.06269925]
[1770057950939,0.0011,2353.5,2352.5,13.52923965]
[1770057951094,0.0011,2353.5,2352.6,12.4665404]
[1770057951728,0.0011,2353.5,2352.7,0.01283532]
[1770057951902,0.0011,2353.5,2352.8,12.47937572]
[1770057952437,0.0011,2353.5,2352.5,13.52923965]
[1770057953139,0.0011,2353.5,2352.6,0.01283532]
[1770057953312,0.0011,2353.5,2352.6,13.10120888]
[1770057953504,12.76532216,2354.3,2352.9,12.47937572]
[1770057953710,12.76532216,2354.3,2353.0,0.892]
[1770057953904,12.76532216,2354.3,2353.0,13.3585404]
[1770057954415,12.76532216,2354.3,2353.2,0.01283532]
[1770057954740,1.27653222,2354.2,2353.3,1.06233799]
[1770057955846,0.0043,2354.5,2353.3,1.06233799]
[1770057955847,0.0043,2354.5,2353.3,13.52887839]
[1770057956158,0.0043,2354.5,2353.5,12.47937572]
[1770057956446,0.0043,2354.5,2353.6,13.3575404]
[1770057956816,12.76962216,2354.5,2353.7,1.06215745]
[1770057957644,0.0043,2354.5,2353.7,1.06215745]
[1770057957826,0.0043,2354.5,2353.8,0.48152752]
[1770057958022,0.0043,2354.5,2353.7,1.06215745]
[1770057960160,12.76532216,2354.4,2353.5,1.06224117]
[1770057960335,12.76532216,2354.4,2353.1,10.64970806]
[1770057960536,12.76532216,2354.4,2353.4,1.06226329]
[1770057960761,1.27696222,2354.3,2353.5,1.06224676]
[1770057961057,1.27696222,2354.3,2353.2,4.26235667]
[1770057961267,15.10419083,2354.3,2353.2,1.06238313]
[1770057961444,14.04228438,2354.3,2353.2,1.06238313]
[1770057961939,15.10417856,2354.3,2353.1,1.06242775]
[1770057962122,12.76532216,2354.1,2353.1,1.06242775]
[1770057962774,12.76532216,2354.1,2352.3,12.47937572]
[1770057962924,2.02427256,2354.2,2352.1,0.1024]
[1770057962925,12.76532216,2353.7,2352.5,1.06266227]
[1770057963126,12.76532216,2353.5,2352.0,0.891]
[1770057963359,12.76532216,2353.3,2352.0,0.891]
[1770057964456,1.47185247,2353.4,2352.7,0.001]
[1770057964659,14.23717463,2353.4,2352.7,0.001]
[1770057965264,15.2994785,2353.4,2352.7,0.001]
[1770057965466,14.23717463,2353.4,2352.7,0.001]
[1770057965678,1.52994531,2353.3,2352.7,0.001]
[1770057966562,14.29526747,2353.3,2351.5,12.4675404]
[1770057966764,12.76532216,2353.1,2351.5,1.955123]
[1770057966962,12.76532216,2352.9,2351.5,1.9551301]
[1770057967168,12.76532216,2352.7,2351.5,1.9551301]
[1770057967381,12.76532216,2352.5,2351.5,0.001]
[1770057967591,12.76532216,2352.5,2350.8,0.891]
[1770057967762,12.76532216,2352.3,2351.1,1.06332849]
[1770057968168,12.76532216,2352.3,2351.3,1.06323091]
[1770057968488,12.76532216,2352.3,2351.2,1.06325489]
[1770057969053,13.82815695,2352.2,2350.9,1.06342251]
[1770057969355,13.82815695,2352.2,2350.7,0.001]
[1770057969356,12.76532216,2352.0,2350.7,0.001]
[1770057969757,2.698932,2352.1,2350.7,0.001]
[1770057969758,12.76532216,2351.8,2350.7,0.001]
[1770057970188,12.76532216,2351.7,2350.7,0.001]
[1770057970388,12.76532216,2351.5,2350.5,0.001]
[1770057970591,9.39940337,2351.8,2350.5,0.001]
[1770057970592,12.76532216,2351.3,2350.5,0.001]
[1770057970760,14.13095438,2351.2,2350.5,0.001]
[1770057971264,15.19428407,2351.2,2350.5,0.001]
[1770057971474,15.19428407,2351.2,2350.2,0.001]
[1770057971676,15.19428407,2351.2,2350.0,0.001]
[1770057973368,12.86772216,2351.0,2349.8,0.001]
[1770057973572,9.39940337,2351.1,2349.5,0.001]
[1770057973573,12.76532216,2350.4,2349.5,0.001]
[1770057973801,12.76532216,2350.4,2349.0,0.001]
[1770057973802,12.76532216,2350.2,2349.0,0.001]
[1770057974309,12.76532216,2350.2,2349.2,1.06415865]
[1770057974610,1.36563222,2350.1,2349.2,0.53222237]
[1770057974778,14.13095438,2350.1,2349.2,0.53222237]
[1770057975100,14.13095438,2350.1,2349.0,0.001]
[1770057975308,12.76532216,2349.9,2349.0,0.001]
[1770057976892,12.76532216,2349.9,2349.2,0.001]
[1770057977793,1.06392033,2349.8,2349.2,0.001]
[1770057977970,12.76532216,2349.9,2349.2,0.001]
[1770057978171,1.06162683,2350.0,2349.2,0.001]
[1770057978589,13.82694899,2350.0,2349.2,0.001]
[1770057979586,1.06162683,2350.0,2349.2,0.001]
[1770057980177,14.75744178,2350.0,2349.2,0.001]
[1770057981913,14.75744178,2350.0,2349.0,0.001]
[1770057982490,13.69361134,2350.0,2349.0,0.001]
[1770057982696,14.75745376,2350.0,2349.0,0.001]
[1770057984386,11.90474393,2349.8,2349.0,0.001]
[1770057984585,11.90474393,2349.6,2348.8,0.001]
[1770057984789,1.20071439,2349.7,2348.8,0.001]
[1770057984790,12.79674393,2349.5,2348.8,0.001]
[1770057985086,12.79674393,2349.5,2348.1,4.2586427]
[1770057985087,12.79674393,2349.5,2348.4,1.06455392]
[1770057985491,12.79674393,2349.5,2348.3,1.06457291]
[1770057985691,12.79674393,2349.5,2348.2,1.06460917]
[1770057985982,12.79674393,2349.5,2348.3,1.06455801]
[1770057985983,11.90474393,2349.3,2348.3,1.06455801]
[1770057986178,11.90474393,2349.3,2348.3,1.06459992]
[1770057986383,13.69361134,2350.0,2348.9,0.01283532]
[1770057986583,1.78886741,2350.0,2348.9,0.01283532]
[1770057986812,1.06162683,2350.0,2348.9,11.80376265]
[1770057987113,1.06162683,2350.0,2348.3,1.07743524]
[1770057987114,14.03021035,2350.0,2348.5,11.79092733]
[1770057987415,14.03021035,2350.0,2348.3,12.86836257]
[1770057987892,14.03021035,2350.0,2348.3,12.85552725]
[1770057989612,14.03021035,2350.0,2348.5,0.001]
[1770057989815,13.73329688,2349.9,2348.5,0.001]
[1770057990113,0.0011,2349.8,2348.5,0.001]
[1770057990282,0.0011,2349.8,2348.8,11.79092733]
[1770057991617,0.0011,2349.8,2349.2,0.01283532]
[1770057991915,0.0011,2349.8,2349.0,1.06428267]
[1770057992118,0.0011,2349.8,2349.1,0.53214134]
[1770057993182,0.0011,2349.8,2348.9,1.06430965]
[1770057993611,0.0011,2349.8,2348.8,4.25738332]
[1770057995420,1.06272683,2350.0,2349.3,11.80376265]
[1770057995629,1.06272683,2350.0,2349.3,16.06016854]
[1770057995788,1.06272683,2350.0,2349.4,1.06410147]
[1770057996297,14.03132003,2350.0,2348.9,4.25721459]
[1770057996488,14.03130225,2350.0,2349.2,1.0641917]
[1770057996692,1.06272683,2350.0,2349.2,1.06416716]
[1770057996991,1.06272683,2350.0,2349.2,1.06416555]
[1770057997204,2.12656421,2350.0,2349.2,1.06416555]
[1770057997407,1.06272683,2350.0,2349.2,1.06416555]
[1770057997608,1.06272683,2350.0,2349.3,1.06414114]
[1770057997808,1.06272683,2350.0,2349.0,11.79092733]
[1770057998535,1.06272683,2350.0,2349.1,0.01283532]
[1770057998699,1.06272683,2350.0,2349.1,11.80376265]
[1770057998901,0.892,2350.5,2349.4,11.79092733]
[1770057999636,0.892,2350.5,2349.2,0.892]
[1770057999637,13.86035045,2350.5,2349.2,0.892]
[1770057999796,13.86035045,2350.5,2349.2,1.95618562]
[1770058001852,13.86035045,2350.5,2349.2,0.892]
[1770058002005,13.86035045,2350.5,2349.2,1.9561919]
[1770058002200,11.90474393,2350.3,2349.2,2.57751471]
[1770058002797,11.90474393,2350.3,2349.4,0.001]
[1770058003228,11.90584393,2350.3,2349.4,0.001]
[1770058003818,11.90474393,2350.1,2349.4,0.001]
[1770058004333,1.0648131,2350.3,2349.4,0.001]
[1770058005038,0.0011,2350.3,2349.4,0.001]
[1770058005239,1.06480031,2350.3,2349.4,0.001]
[1770058007936,13.7175578,2350.3,2349.4,0.001]
[1770058009341,0.0011,2350.3,2349.4,0.001]
[1770058010340,11.79884154,2350.3,2349.4,0.001]
[1770058010537,12.86255981,2350.3,2349.4,0.001]
[1770058013333,12.86253723,2350.3,2349.4,0.001]
[1770058016337,11.79884154,2350.3,2349.4,0.001]
[1770058016536,1.2862523,2350.2,2349.6,0.001]
[1770058016846,0.0011,2350.1,2349.6,0.001]
[1770058020655,0.0011,2350.3,2349.7,12.36080484]
[1770058021094,0.0011,2350.3,2349.6,0.001]
[1770058021675,0.0011,2350.3,2349.6,12.36180484]
[1770058022092,0.0011,2350.3,2349.6,13.50962687]
[1770058022262,0.0011,2350.3,2349.7,13.42477045]
[1770058023069,14.20698945,2351.0,2349.9,12.36080484]
[1770058023070,2.03214926,2351.0,2349.9,12.36080484]
[1770058023355,2.03214926,2351.0,2349.9,0.892]
[1770058023356,12.69084154,2351.0,2349.9,0.892]
[1770058023559,0.8931,2351.0,2350.1,12.36080484]
[1770058023826,0.0011,2351.0,2350.1,12.36080484]
[1770058024299,11.79884154,2351.0,2350.1,1.06375493]
[1770058024469,12.9378908,2351.0,2350.0,1.06380904]
[1770058024792,11.79774154,2350.8,2350.1,1.0637815]
[1770058025002,11.79774154,2350.8,2350.0,1.06379358]
[1770058025215,13.09142062,2350.7,2350.0,1.06379358]
[1770058025702,13.09142062,2350.7,2350.1,1.06377966]
[1770058026084,13.09142062,2350.7,2350.0,1.06379669]
[1770058026281,13.09142062,2350.7,2350.0,1.06382978]
[1770058027796,14.00127684,2351.0,2350.0,1.06382978]
[1770058027998,0.0011,2351.0,2350.0,13.43746994]
[1770058028374,0.0011,2351.0,2350.4,12.36080484]
[1770058028573,0.0011,2351.3,2350.4,12.36080484]
[1770058028789,0.0011,2351.5,2350.9,0.01283532]
[1770058028988,0.0011,2351.5,2350.7,13.25280484]
[1770058029213,0.0011,2351.5,2350.7,0.892]
[1770058029716,0.0011,2351.5,2350.7,13.25280484]
[1770058030291,0.0011,2351.5,2350.8,1.06346775]
[1770058032901,11.79884154,2352.3,2351.0,12.37364016]
[1770058033104,11.79884154,2352.3,2351.1,12.37364016]
[1770058033409,13.08510567,2352.3,2351.1,12.37364016]
[1770058033596,0.0011,2352.3,2351.4,12.37364016]
[1770058033797,0.0011,2352.3,2351.5,0.892]
[1770058034380,0.0011,2352.3,2351.7,12.37364016]
[1770058034585,0.0011,2352.3,2351.8,1.06301556]
[1770058034907,0.0011,2352.3,2351.7,1.06305859]
[1770058035223,11.79884154,2352.3,2351.7,1.06305888]
[1770058035514,11.79884154,2352.3,2351.6,1.06310295]
[1770058035515,12.97762569,2352.2,2351.6,1.06310295]
[1770058036697,11.79774154,2352.2,2351.6,1.06310597]
[1770058037208,0.0011,2352.3,2351.6,1.06310597]
[1770058037723,0.0011,2352.3,2351.5,1.95511649]
[1770058037887,12.86163466,2352.3,2351.5,0.892]
[1770058038306,12.86163466,2352.3,2351.5,1.06315071]
[1770058038513,11.79774154,2352.1,2351.0,0.892]
[1770058038695,11.79774154,2352.1,2351.1,1.06331219]
[1770058038696,11.79774154,2351.9,2351.1,1.06331219]
[1770058041313,0.0011,2351.7,2351.1,1.06331219]
[1770058042482,12.86187824,2351.7,2350.8,1.06344639]
[1770058042710,12.86187824,2351.7,2350.9,1.06341428]
[1770058042711,12.86077824,2351.5,2350.9,1.06341428]
[1770058042909,1.28618782,2351.6,2351.0,1.06337635]
[1770058043116,0.0011,2351.7,2350.8,1.06346775]
[1770058043823,0.0011,2351.7,2350.8,13.93202798]
[1770058045718,0.0011,2351.7,2350.8,1.06346775]
[1770058045918,12.86187824,2351.7,2350.8,1.06346775]
[1770058047154,13.92497401,2351.7,2350.5,1.06360348]
[1770058047452,12.86077824,2351.5,2350.5,1.06360348]
[1770058048620,1.06419577,2351.7,2350.8,12.88139555]
[1770058048621,0.0011,2351.7,2350.8,12.88139555]
[1770058048817,0.0011,2351.7,2351.1,0.01283532]
[1770058049218,0.0011,2351.7,2351.2,1.06328683]
[1770058049553,0.0011,2351.7,2351.3,0.53292695]
[1770058051327,0.0011,2351.7,2351.4,1.06319639]
[1770058053845,0.0011,2352.3,2351.4,1.07603171]
[1770058054029,12.6526095,2352.3,2351.4,1.06319639]
[1770058054339,12.86077824,2352.1,2351.1,0.001]
[1770058054544,12.86077824,2352.0,2351.1,0.001]
[1770058055318,12.86077824,2351.8,2351.1,0.001]
[1770058056663,1.13904926,2352.1,2351.1,12.86956023]
[1770058056864,13.92462057,2352.5,2351.2,0.54576227]
[1770058057035,13.92462057,2352.5,2351.3,0.892]
[1770058057233,13.92462057,2352.5,2351.1,0.001]
[1770058057234,12.86077824,2352.2,2351.1,0.001]
[1770058057423,12.86077824,2352.0,2351.1,0.001]
[1770058057635,12.86077824,2352.0,2350.4,1.14782203]
[1770058057636,12.86077824,2351.4,2350.4,1.14782203]
[1770058057934,12.86077824,2351.4,2350.4,0.53292695]
[1770058057935,14.8918275,2351.4,2350.4,0.53292695]
[1770058058328,1.13904926,2351.3,2350.4,0.53292695]
[1770058058756,0.892,2351.4,2350.6,1.06352047]
[1770058058961,0.892,2351.4,2350.5,4.25430457]
[1770058058962,13.75277824,2351.4,2350.5,1.06359461]
[1770058059130,13.75277824,2351.4,2350.5,1.06358656]
[1770058059131,12.86077824,2351.4,2350.5,1.06358656]
[1770058059324,13.92399126,2351.4,2350.5,1.06358656]
[1770058059724,13.92397536,2351.4,2350.5,1.06358656]
[1770058059947,13.92397944,2351.4,2350.5,1.06358656]
[1770058062155,1.0632012,2351.4,2350.5,1.06358656]
[1770058062321,1.0632012,2351.4,2350.4,1.59654333]
[1770058062735,1.0632012,2351.4,2350.4,0.53292695]
[1770058062938,13.92397944,2351.4,2350.4,0.53292695]
[1770058063568,13.92397944,2351.4,2350.4,1.59657053]
[1770058064041,13.92397944,2351.4,2350.4,0.53292695]
[1770058064462,13.92397944,2351.4,2350.4,1.59656265]
[1770058064850,13.92397944,2351.4,2350.4,1.60939797]
[1770058065180,13.92397944,2351.4,2350.4,0.53292695]
[1770058065751,13.92397944,2351.4,2350.4,1.59657059]
[1770058065980,16.16691724,2351.4,2350.4,1.59657059]
[1770058066152,16.16691724,2351.4,2350.6,0.001]
[1770058066354,0.0011,2351.2,2350.6,0.001]
[1770058066789,0.0011,2351.2,2350.7,0.53292695]
[1770058067148,0.0011,2351.4,2350.7,12.86856023]
[1770058067352,0.0011,2351.4,2350.9,0.01283532]
[1770058067585,0.0011,2351.4,2351.0,1.06337728]
[1770058067800,0.0011,2351.4,2351.0,1.59630423]
[1770058069588,0.85286453,2352.2,2351.0,13.97974949]
[1770058069760,2.83444581,2352.2,2351.1,0.53292695]
[1770058070183,15.43178528,2352.2,2351.1,0.53292695]
[1770058070564,14.57892075,2352.2,2351.1,0.53292695]
[1770058072668,15.64177142,2352.2,2351.0,13.97974949]
[1770058072872,15.64177142,2352.2,2351.1,0.53292695]
[1770058073068,1.67808207,2352.1,2351.1,0.53292695]
[1770058074094,0.0011,2352.4,2351.4,12.56194201]
[1770058074300,0.0011,2352.4,2351.5,0.53292695]
[1770058074592,14.80024143,2352.4,2351.3,1.06324161]
[1770058074797,12.59733947,2352.2,2351.3,0.53292695]
[1770058075007,12.59733947,2352.2,2351.0,1.063352]
[1770058075312,1.13904926,2352.3,2351.2,1.06328023]
[1770058075313,12.59733947,2352.0,2351.2,1.06328023]
[1770058075474,12.59733947,2352.0,2351.1,1.59622525]
[1770058075994,12.59733947,2352.0,2351.1,1.59623463]
[1770058076903,13.66030828,2352.0,2351.1,1.59623463]
[1770058077111,13.66030828,2352.0,2351.1,1.06330768]
[1770058077305,1.92855569,2351.9,2351.2,0.53292695]
[1770058078173,12.59733947,2352.0,2351.2,0.53292695]
[1770058078476,13.66026571,2352.0,2351.2,0.53292695]
[1770058079499,13.66026571,2352.0,2351.2,0.53392695]
[1770058079672,13.66026571,2352.0,2351.2,0.001]
[1770058079876,13.66136571,2352.0,2351.2,0.001]
[1770058080210,12.59733947,2351.8,2351.0,0.001]
[1770058080731,12.59733947,2351.8,2350.4,0.001]
[1770058080732,12.59733947,2351.3,2350.4,0.001]
[1770058080872,1.95528683,2351.2,2350.4,0.001]
[1770058081077,14.5526263,2351.2,2350.4,0.001]
[1770058081301,14.47791511,2351.1,2350.4,0.001]
[1770058081575,1.88057564,2351.1,2350.4,0.001]
[1770058081907,2.20227933,2351.4,2350.4,12.55010669]
[1770058082114,1.06323007,2351.4,2350.4,12.55010669]
[1770058082283,1.13904926,2351.6,2350.4,12.55010669]
[1770058082484,3.19478255,2351.9,2350.6,12.54910669]
[1770058082684,3.19475396,2351.9,2350.8,12.56194201]
[1770058082898,15.79209343,2351.9,2350.9,1.06342251]
[1770058083296,14.72910734,2351.9,2350.9,1.07625783]
[1770058084114,0.0011,2352.0,2350.9,13.62536452]
[1770058084408,0.0011,2352.0,2351.2,0.01283532]
[1770058084608,1.0640288,2352.0,2350.9,13.6125292]
[1770058084788,13.66136827,2352.0,2350.9,13.6125292]
[1770058084989,13.66136827,2352.0,2351.1,1.06333205]
[1770058086014,12.59843947,2352.0,2351.1,1.06333205]
[1770058086311,1.13904926,2352.3,2351.4,12.54910669]
[1770058086513,13.66071836,2353.5,2352.3,0.01283532]
[1770058086674,13.45105191,2353.5,2352.3,0.8971715]
[1770058086877,15.06261952,2353.4,2351.6,12.54910669]
[1770058087092,15.06261952,2353.4,2351.7,1.06306076]
[1770058087813,15.06261952,2353.4,2351.7,2.20529438]
[1770058088310,15.06261952,2353.4,2351.7,2.2181297]
[1770058088514,12.59733947,2353.2,2351.7,14.76723639]
[1770058088720,12.59733947,2353.2,2351.8,1.14223362]
[1770058088897,12.59733947,2353.2,2351.8,0.01283532]
[1770058089214,2.96020966,2353.3,2352.1,0.01283532]
[1770058089388,4.02255024,2353.3,2351.9,13.61207705]
[1770058089594,12.99959449,2353.2,2351.9,1.06297036]
[1770058091308,14.06201647,2353.2,2351.9,1.06297036]
[1770058091519,12.99959449,2353.2,2351.9,1.06297036]
[1770058091689,12.99959449,2353.2,2351.9,13.61207705]
[1770058092313,14.06198605,2353.2,2351.9,1.06297036]
[1770058092491,12.59733947,2353.0,2351.9,1.06397036]
[1770058093420,12.59733947,2353.0,2351.9,0.001]
[1770058095489,12.59733947,2353.0,2351.9,1.06397036]
[1770058096308,1.40619861,2353.1,2351.9,13.61307705]
[1770058096624,0.40335502,2353.2,2352.1,12.56194201]
[1770058096811,0.0011,2353.2,2352.1,12.56194201]
[1770058097322,0.0011,2353.2,2352.2,13.61194148]
[1770058097521,12.59843947,2353.2,2352.3,0.891]
[1770058097823,12.59843947,2353.2,2352.1,1.06287655]
[1770058099625,12.59733947,2353.0,2351.9,1.06397036]
[1770058099829,13.96342441,2353.0,2351.9,1.06397036]
[1770058100608,13.96342441,2353.0,2351.9,13.81702237]
[1770058100609,1.36608494,2353.0,2351.9,13.81702237]
[1770058100818,12.91272059,2353.2,2351.9,13.81702237]
[1770058101329,0.0011,2353.2,2352.1,12.76588733]
[1770058101515,0.0011,2353.2,2352.3,12.75305201]
[1770058102229,0.0011,2353.2,2352.2,1.06283479]
[1770058102230,12.91272059,2353.2,2352.2,1.06283479]
[1770058102397,14.20289265,2353.1,2352.2,1.06283479]
[1770058103421,0.0011,2353.2,2352.1,4.25133917]
[1770058103422,0.0011,2353.2,2352.1,17.00439118]
[1770058103619,0.0011,2353.2,2352.2,12.76588733]
[1770058104540,12.91272059,2353.2,2352.0,4.25169428]
[1770058104723,12.91272059,2353.2,2352.1,0.01283532]
[1770058105043,12.91272059,2353.2,2352.1,12.76588733]
[1770058105215,0.0011,2353.2,2352.1,12.76588733]
[1770058106641,0.0011,2353.2,2352.2,13.8158868]
[1770058113353,0.0011,2353.2,2352.2,14.95537222]
[1770058114231,0.0011,2353.2,2352.3,13.89253743]
[1770058114440,0.0011,2353.2,2352.4,1.13948542]
[1770058115122,0.0011,2353.2,2352.5,0.891]
[1770058115324,0.0011,2353.2,2352.6,1.13948542]
[1770058115755,0.0011,2353.2,2352.7,1.06260891]
[1770058116259,0.0011,2353.2,2352.7,2.20209433]
[1770058116428,0.0011,2353.4,2352.8,13.89143743]
[1770058116627,0.0011,2353.4,2352.9,1.13948542]
[1770058118237,0.0011,2353.4,2352.9,1.06251859]
[1770058118755,0.0011,2353.4,2352.9,2.20200401]
[1770058119276,0.0011,2353.4,2353.0,0.891]
[1770058120807,0.0011,2353.4,2353.1,1.06242828]
[1770058121071,12.91272059,2353.4,2353.0,1.95346404]
[1770058121371,0.0011,2353.4,2353.0,1.95346404]
[1770058121972,12.91162059,2354.0,2353.0,15.84380147]
[1770058122272,12.91272059,2354.2,2353.1,14.0653551]
[1770058122846,12.91272059,2354.2,2353.2,1.06238313]
[1770058123148,0.0011,2354.2,2353.2,13.98825281]
[1770058123353,0.0011,2354.2,2353.3,12.938705]
[1770058123540,0.0011,2354.2,2353.3,14.07819042]
[1770058124071,12.91272059,2354.2,2353.3,1.13948542]
[1770058124273,13.97467968,2354.2,2353.2,2.20186855]
[1770058124473,13.97467968,2354.2,2353.2,1.06238313]
[1770058124678,12.91162059,2354.0,2353.2,1.06238313]
[1770058124978,12.91162059,2354.0,2353.0,1.06247343]
[1770058125677,12.91162059,2354.0,2353.1,1.13948542]
[1770058127341,12.91162059,2354.0,2353.2,1.06238313]
[1770058128171,0.0011,2354.2,2353.5,12.92586968]
[1770058128372,12.91272059,2354.2,2353.6,0.891]
[1770058129547,13.9746529,2354.2,2352.9,1.13948542]
[1770058129749,12.47527121,2353.9,2352.4,0.001]
[1770058129959,12.47527121,2353.9,2352.4,12.71908667]
[1770058130245,12.47527121,2353.9,2352.9,1.06251727]
[1770058130448,12.94326689,2353.7,2352.6,1.06260986]
[1770058130767,12.94326689,2353.7,2352.4,0.001]
[1770058130972,12.94326689,2353.7,2352.5,1.06266432]
[1770058131159,12.94326689,2353.7,2352.9,0.001]
[1770058131354,12.94326689,2353.5,2352.9,0.001]
[1770058131559,12.94326689,2353.3,2352.9,0.001]
[1770058134392,12.94326689,2353.3,2352.4,0.001]
[1770058136886,12.94326689,2353.6,2352.6,12.71808667]
[1770058138674,12.94326689,2353.6,2352.7,1.06260891]
[1770058138875,0.0011,2354.0,2353.3,0.01283532]
[1770058139077,0.0011,2354.0,2353.1,14.73573677]
[1770058139373,0.0011,2354.3,2353.7,0.01283532]
[1770058139572,0.0011,2354.3,2353.8,0.891]
[1770058140084,12.94326689,2355.0,2353.8,0.891]
[1770058140259,1.29432669,2354.9,2353.8,0.891]
[1770058140463,1.29432669,2354.9,2353.8,2.03048542]
[1770058140664,1.29432669,2354.9,2353.9,1.0620672]
[1770058141576,12.94326689,2355.0,2354.0,0.01283532]
[1770058141783,12.94326689,2355.3,2354.0,12.71808667]
[1770058141981,12.94326689,2355.6,2354.3,0.01283532]
[1770058142360,12.94326689,2355.6,2354.2,1.13948542]
[1770058142596,12.94326689,2355.6,2354.2,0.891]
[1770058142893,12.94326689,2355.4,2354.3,1.06188676]
[1770058143792,12.94326689,2355.4,2353.9,1.13948542]
[1770058144016,12.94326689,2355.2,2353.9,1.06205783]
[1770058144163,12.94326689,2355.2,2353.9,1.06204807]
[1770058144355,12.94326689,2355.2,2353.5,1.13948542]
[1770058144560,12.94326689,2354.8,2353.2,1.06235009]
[1770058144775,12.94326689,2354.8,2353.1,1.06242828]
[1770058144776,12.94326689,2354.6,2353.1,1.06242828]
[1770058145062,13.83426689,2354.6,2353.1,1.06342828]
[1770058145469,13.83426689,2354.6,2353.3,0.01283532]
[1770058146672,14.89605793,2354.6,2353.4,1.06229285]
[1770058146897,16.38577372,2354.6,2353.4,1.06229285]
[1770058147202,15.32398268,2354.6,2353.6,0.01283532]
[1770058147500,0.0011,2354.7,2353.6,0.01283532]
[1770058148591,0.0011,2354.7,2353.6,0.90383532]
[1770058148996,0.0011,2354.7,2353.7,1.06215745]
[1770058150097,0.0011,2354.7,2353.9,0.01283532]
[1770058151104,0.0011,2354.7,2354.0,1.06202209]
[1770058153921,12.94436689,2354.7,2353.4,1.13948542]
[1770058154093,12.94436689,2354.7,2353.8,1.06210868]
[1770058154298,12.94436689,2354.7,2353.8,1.06210689]
[1770058154493,12.94436689,2354.7,2353.6,4.24870923]
[1770058154700,12.94436689,2354.7,2353.7,1.06213036]
[1770058154887,12.94326689,2354.5,2353.4,1.06227128]
[1770058155221,12.94326689,2354.5,2353.3,4.24935143]
[1770058155222,12.94326689,2354.1,2352.9,0.001]
[1770058155397,12.94326689,2353.9,2352.9,0.001]
[1770058157122,1.06211232,2353.8,2352.9,0.001]
[1770058157319,13.47432207,2353.7,2352.9,0.001]
[1770058157488,13.47432207,2353.7,2353.1,0.001]
[1770058158419,13.47432207,2353.7,2352.9,0.001]
[1770058158621,13.47432207,2353.7,2352.4,4.25161633]
[1770058159391,12.94326689,2353.5,2352.4,4.25161633]
[1770058159806,1.40054695,2353.4,2352.4,4.25161633]
[1770058162126,0.53105518,2353.7,2352.6,0.01283532]
[1770058162530,1.59322019,2353.7,2352.6,0.01283532]
[1770058163131,14.50089767,2353.7,2352.4,4.25161633]
[1770058164229,12.9205128,2352.5,2351.6,0.001]
[1770058164448,12.90767748,2352.3,2351.4,0.0008]
[1770058164594,12.90767748,2352.3,2351.4,1.06398927]
[1770058164795,12.90767748,2352.3,2351.4,0.0008]
[1770058165834,13.97051227,2352.2,2351.4,0.0008]
[1770058166219,0.01283532,2351.5,2350.7,0.001]
[1770058166422,12.9205128,2351.5,2350.7,0.001]
[1770058166736,0.01283532,2351.2,2350.7,0.001]
[1770058167135,14.19972876,2351.4,2350.7,0.001]
[1770058167631,15.26296196,2351.4,2350.7,0.001]
[1770058167827,0.94981624,2351.8,2350.7,0.001]
[1770058168032,2.01284863,2351.8,2350.7,0.001]
[1770058168198,14.92052611,2351.8,2350.7,0.001]
[1770058169112,0.94981624,2351.8,2350.7,0.001]
[1770058169299,2.0128386,2351.8,2350.7,0.001]
[1770058169698,0.62647253,2351.7,2350.7,0.001]
[1770058169932,0.94981624,2351.8,2350.7,0.001]
[1770058170120,0.94981624,2351.8,2350.9,0.001]
[1770058171511,0.94981624,2351.8,2350.9,12.9896255]
[1770058171712,0.94981624,2351.8,2351.0,1.06337728]
[1770058173035,0.86481391,2351.8,2351.0,13.16100278]
[1770058173210,12.90767748,2352.6,2351.2,12.0976255]
[1770058173417,13.97033496,2352.6,2351.2,12.0976255]
[1770058173940,13.97033496,2352.6,2351.3,1.06324161]
[1770058174235,13.97033539,2352.6,2351.3,1.06324161]
[1770058174403,15.88151064,2352.6,2351.3,1.06324161]
[1770058175604,14.81885273,2352.6,2351.3,1.06324161]
[1770058175805,12.90767748,2352.6,2351.3,13.17370243]
[1770058176115,4.72296075,2353.2,2352.0,0.01283532]
[1770058176116,13.27866965,2353.2,2352.0,0.01283532]
[1770058176426,0.37099217,2353.2,2352.0,13.00146082]
[1770058176625,12.90877748,2353.5,2352.3,0.01283532]
[1770058176803,12.90877748,2353.5,2352.4,0.891]
[1770058177005,12.90877748,2353.5,2351.3,1.06324161]
[1770058177006,12.90767748,2353.2,2351.3,1.06324161]
[1770058177212,12.90767748,2353.0,2351.3,1.06324161]
[1770058177412,1.37986775,2352.9,2351.7,12.11046082]
[1770058177639,13.01007748,2353.4,2351.8,12.9886255]
[1770058177858,12.90767748,2353.2,2351.9,1.06297036]
[1770058178416,12.90767748,2353.2,2351.9,1.07580568]
[1770058179850,13.97009418,2353.2,2351.9,1.07580568]
[1770058182354,13.97009418,2353.2,2351.9,1.06297036]
[1770058182551,12.90767748,2353.0,2351.9,1.06297036]
[1770058182749,12.90767748,2353.0,2352.0,0.001]
[1770058183137,12.90877748,2353.0,2352.0,0.001]
[1770058184349,13.9712936,2353.0,2352.0,0.001]
[1770058185659,13.9712936,2353.0,2352.4,0.01283532]
[1770058185660,0.0011,2353.0,2352.4,0.01283532]
[1770058185956,0.0011,2353.0,2352.0,0.001]
[1770058185957,13.97127359,2353.0,2352.0,0.001]
[1770058186143,13.97028639,2352.7,2352.0,0.001]
[1770058187648,13.97028639,2352.7,2351.8,0.001]
[1770058193150,12.44660266,2352.3,2350.9,0.001]
[1770058193349,12.44660266,2352.1,2350.9,0.001]
[1770058193550,12.44660266,2352.1,2351.0,4.26616354]
[1770058193750,13.78036293,2352.0,2350.9,1.06440013]
[1770058193973,13.78036293,2352.0,2350.9,0.001]
[1770058194352,13.78036293,2352.0,2350.9,1.06441746]
[1770058195171,13.50957302,2351.9,2350.9,0.001]
[1770058197350,13.50957302,2351.9,2351.8,0.001]
[1770058197584,13.50957302,2351.9,2350.9,0.001]
[1770058197585,15.41909449,2351.9,2350.9,0.001]
[1770058199656,12.44660266,2351.8,2350.7,0.001]